bitfinex/quotes_SOLUSD_20250401
["timestamp","ask_amount","ask_price","bid_price","bid_amount"]
[1743504311108,0.063,128.18,128.17,33.716072]
[1743504311410,0.063,128.18,128.17,25.913972]
[1743504312817,0.063,128.18,128.17,33.716072]
[1743504315019,0.063,128.19,128.18,38.933972]
[1743504315192,0.063,128.19,128.18,46.735472]
[1743504316826,0.063,128.19,128.18,271.435472]
[1743504317497,0.063,128.19,128.18,263.633972]
[1743504317689,0.063,128.19,128.18,270.593972]
[1743504318095,0.063,128.19,128.18,278.395472]
[1743504318308,0.063,128.19,128.18,53.695472]
[1743504319997,0.063,128.19,128.18,53.725472]
[1743504324941,7.9296,128.3,128.25,20.0]
[1743504325121,7.9296,128.3,128.27,0.28432314]
[1743504325302,7.9296,128.3,128.29,18.64964886]
[1743504325501,0.063,128.32,128.3,0.28432314]
[1743504325697,0.063,128.32,128.31,6.94]
[1743504326725,0.063,128.32,128.31,231.56]
[1743504327039,0.063,128.32,128.31,250.493972]
[1743504327606,0.063,128.32,128.31,33.667572]
[1743504328827,0.063,128.32,128.31,25.873972]
[1743504330330,0.063,128.32,128.28,20.0]
[1743504330517,7.33935447,128.32,128.29,25.73181043]
[1743504331022,0.063,128.32,128.29,25.73181043]
[1743504331224,0.063,128.32,128.3,0.14216157]
[1743504332635,0.063,128.32,128.29,25.73181043]
[1743504333020,0.063,128.32,128.3,0.14216157]
[1743504336317,0.063,128.32,128.29,25.73181043]
[1743504336318,0.063,128.32,128.29,6.94]
[1743504336826,7.856,128.32,128.3,231.42]
[1743504338330,8.93785447,128.31,128.3,231.42]
[1743504339436,0.063,128.32,128.3,231.42]
[1743504340716,0.063,128.32,128.31,18.933972]
[1743504342745,0.063,128.32,128.31,26.727572]
[1743504343048,0.063,128.32,128.3,231.42]
[1743504343339,0.063,128.32,128.3,239.2141]
[1743504343546,0.063,128.32,128.31,18.933972]
[1743504346735,0.063,128.32,128.31,243.393972]
[1743504347126,0.063,128.32,128.31,224.46]
[1743504347326,0.063,128.32,128.31,258.107572]
[1743504348840,0.063,128.32,128.31,239.1736]
[1743504349160,0.063,128.32,128.31,231.38]
[1743504350372,0.063,128.32,128.31,258.107572]
[1743504351341,0.063,128.32,128.31,250.313972]
[1743504352349,0.063,128.32,128.31,258.107572]
[1743504353029,0.063,128.32,128.31,53.647572]
[1743504356830,0.063,128.32,128.31,278.067572]
[1743504360440,0.063,128.32,128.31,271.147572]
[1743504360634,0.063,128.32,128.31,6.9]
[1743504361042,0.063,128.32,128.31,7.18432314]
[1743504361237,0.063,128.32,128.31,25.833972]
[1743504362553,0.063,128.32,128.29,18.79181043]
[1743504362743,0.063,128.32,128.31,6.92]
[1743504363752,0.063,128.32,128.28,20.28432314]
[1743504363938,0.063,128.32,128.31,7.20432314]
[1743504364141,0.063,128.32,128.31,33.647572]
[1743504364737,0.063,128.34,128.33,38.933972]
[1743504366156,18.83067507,128.37,128.33,18.933972]
[1743504366861,18.83067507,128.37,128.34,224.38]
[1743504367747,11.36762507,128.35,128.34,224.38]
[1743504367947,19.19162507,128.35,128.34,231.3]
[1743504368354,26.98272507,128.35,128.34,231.3]
[1743504368534,46.46062507,128.35,128.34,224.38]
[1743504368739,46.46062507,128.35,128.27,18.933972]
[1743504368946,46.46062507,128.35,128.26,0.28432314]
[1743504368947,11.36762507,128.31,128.26,0.28432314]
[1743504369153,11.36762507,128.3,128.26,0.28432314]
[1743504369862,11.36762507,128.3,128.27,6.94]
[1743504370358,11.36762507,128.32,128.28,18.933972]
[1743504370575,19.16002507,128.33,128.28,18.933972]
[1743504371761,19.16002507,128.33,128.28,26.729372]
[1743504371963,19.16002507,128.33,128.28,18.933972]
[1743504372267,11.36762507,128.32,128.28,18.933972]
[1743504372848,11.36762507,128.31,128.25,18.933972]
[1743504373068,11.36762507,128.31,128.26,6.92]
[1743504373766,7.7942,128.3,128.26,6.92]
[1743504373945,7.7942,128.3,128.25,26.730872]
[1743504374145,7.7942,128.3,128.26,6.92]
[1743504375668,7.7942,128.3,128.27,18.933972]
[1743504375880,20.0,128.31,128.27,18.933972]
[1743504376048,19.16052507,128.33,128.27,18.933972]
[1743504376862,19.16052507,128.33,128.28,224.44]
[1743504378268,11.36762507,128.32,128.28,224.44]
[1743504378455,7.7929,128.33,128.28,224.44]
[1743504378649,19.16052507,128.33,128.28,224.44]
[1743504379671,19.16052507,128.33,128.28,232.2353]
[1743504379984,7.7929,128.33,128.28,232.2353]
[1743504380756,100.85962507,128.34,128.29,18.933972]
[1743504380961,7.792,128.34,128.29,18.933972]
[1743504381868,7.792,128.34,128.29,26.728172]
[1743504383678,26.98302507,128.35,128.29,26.728172]
[1743504384172,19.15822507,128.36,128.29,46.215172]
[1743504384678,19.15782507,128.37,128.3,20.0]
[1743504384879,19.15782507,128.37,128.32,18.933972]
[1743504385075,11.36762507,128.36,128.32,18.933972]
[1743504385378,19.15942507,128.34,128.31,6.92]
[1743504386358,11.36762507,128.35,128.32,18.933972]
[1743504386562,107.3564,128.38,128.32,18.933972]
[1743504386769,11.36762507,128.37,128.32,18.933972]
[1743504387159,101.2367,128.38,128.32,18.933972]
[1743504387360,19.15752507,128.37,128.32,18.933972]
[1743504388079,19.15752507,128.37,128.32,26.726772]
[1743504388862,11.36762507,128.36,128.32,26.726772]
[1743504389065,11.36762507,128.36,128.32,18.933972]
[1743504389464,19.15852507,128.36,128.33,224.44]
[1743504390387,7.7909,128.36,128.33,224.44]
[1743504391679,11.43062507,128.38,128.34,18.933972]
[1743504391986,0.063,128.38,128.34,38.933972]
[1743504393077,0.063,128.38,128.37,18.933972]
[1743504393283,0.063,128.38,128.37,25.833972]
[1743504393660,0.063,128.38,128.37,33.623872]
[1743504393865,0.063,128.38,128.37,25.833972]
[1743504394386,0.063,128.38,128.37,7.18432314]
[1743504395392,0.063,128.38,128.37,6.9]
[1743504396173,11.43062507,128.38,128.37,6.9]
[1743504396783,0.063,128.38,128.37,231.28]
[1743504399588,11.43062507,128.38,128.37,231.28]
[1743504400379,19.21992507,128.38,128.37,231.28]
[1743504400689,7.8523,128.38,128.37,231.28]
[1743504401396,19.21992507,128.38,128.37,231.28]
[1743504403099,38.69332507,128.38,128.37,224.38]
[1743504404392,38.69332507,128.38,128.37,231.26]
[1743504410995,38.69332507,128.38,128.37,224.38]
[1743504412677,38.69332507,128.38,128.37,231.24]
[1743504412870,38.69332507,128.38,128.37,224.4]
[1743504414398,38.69332507,128.38,128.37,231.26]
[1743504415874,20.0,128.35,128.34,0.03]
[1743504416073,31.36762507,128.35,128.34,0.03]
[1743504416794,31.36762507,128.35,128.34,224.43]
[1743504417386,11.36762507,128.37,128.34,231.29]
[1743504417996,7.7905,128.36,128.34,231.29]
[1743504418973,19.15812507,128.36,128.34,231.29]
[1743504419180,11.36762507,128.35,128.34,231.29]
[1743504420099,19.15872507,128.35,128.34,231.29]
[1743504420804,7.7911,128.35,128.34,231.29]
[1743504420995,7.7907,128.36,128.34,231.29]
[1743504421298,0.063,128.38,128.35,18.933972]
[1743504422294,0.063,128.38,128.37,18.933972]
[1743504422521,0.063,128.38,128.37,38.933972]
[1743504422690,0.063,128.38,128.37,40.443072]
[1743504423501,0.063,128.38,128.37,20.443072]
[1743504423702,0.063,128.38,128.34,6.89]
[1743504423703,0.063,128.38,128.34,18.963972]
[1743504423881,0.063,128.38,128.35,6.86]
[1743504424090,0.063,128.38,128.36,0.28432314]
[1743504424808,0.063,128.38,128.37,18.933972]
[1743504425207,0.063,128.38,128.37,0.28432314]
[1743504426688,0.063,128.38,128.37,224.64432314]
[1743504427891,0.063,128.38,128.37,232.43422314]
[1743504429495,0.063,128.38,128.37,272.684272]
[1743504429696,0.063,128.39,128.38,18.933972]
[1743504431211,0.063,128.39,128.38,26.723272]
[1743504431612,0.063,128.39,128.38,25.813972]
[1743504435805,0.063,128.39,128.38,33.603272]
[1743504436825,0.063,128.39,128.38,257.923272]
[1743504439125,0.063,128.39,128.38,250.113972]
[1743504439628,0.063,128.39,128.38,25.793972]
[1743504441823,0.063,128.39,128.37,0.03]
[1743504442027,11.43062507,128.39,128.37,0.03]
[1743504442323,11.36762507,128.38,128.37,0.03]
[1743504442528,19.20102507,128.38,128.37,6.91]
[1743504443327,26.99032507,128.38,128.37,6.91]
[1743504446225,7.7893,128.38,128.37,6.91]
[1743504446828,7.8519,128.39,128.37,231.23]
[1743504447417,0.063,128.39,128.37,231.23]
[1743504447718,7.8519,128.39,128.37,231.23]
[1743504447911,19.21952507,128.39,128.37,231.23]
[1743504449425,0.063,128.39,128.37,231.23]
[1743504450310,11.36762507,128.38,128.37,224.35]
[1743504450505,11.36762507,128.38,128.37,231.25]
[1743504451708,11.36762507,128.38,128.37,224.34]
[1743504451915,11.36762507,128.38,128.34,0.03]
[1743504452229,11.36762507,128.35,128.34,0.03]
[1743504452933,11.36762507,128.35,128.34,6.95]
[1743504453717,11.36762507,128.35,128.34,0.03]
[1743504453930,11.36762507,128.35,128.34,6.95]
[1743504454116,19.15872507,128.35,128.34,6.95]
[1743504455117,38.63662507,128.35,128.34,6.92]
[1743504456839,38.63662507,128.35,128.34,231.32]
[1743504457140,38.63662507,128.35,128.34,231.3]
[1743504460940,19.15872507,128.35,128.34,231.3]
[1743504461734,19.15842507,128.36,128.34,231.3]
[1743504461926,7.7908,128.36,128.34,231.3]
[1743504463023,19.15842507,128.36,128.34,231.3]
[1743504463821,11.36762507,128.35,128.34,231.3]
[1743504465325,19.15872507,128.35,128.34,231.3]
[1743504466021,19.15872507,128.35,128.34,231.33]
[1743504470544,7.7911,128.35,128.34,231.33]
[1743504471443,19.22092507,128.37,128.34,231.33]
[1743504471746,7.8533,128.37,128.34,231.33]
[1743504472144,0.063,128.37,128.35,18.933972]
[1743504472846,0.063,128.37,128.35,26.725072]
[1743504473019,0.063,128.37,128.35,18.933972]
[1743504473425,0.063,128.37,128.35,26.725072]
[1743504473746,0.063,128.37,128.35,18.933972]
[1743504474528,0.063,128.37,128.35,46.725072]
[1743504475437,0.063,128.37,128.36,26.603872]
[1743504476643,0.063,128.37,128.36,34.394372]
[1743504476848,0.063,128.37,128.36,258.794372]
[1743504477539,0.063,128.41,128.37,20.28432314]
[1743504477748,0.063,128.41,128.37,18.64964886]
[1743504478051,0.063,128.41,128.39,18.933972]
[1743504478936,0.063,128.41,128.39,26.722672]
[1743504479345,0.063,128.41,128.39,46.722672]
[1743504480737,0.063,128.41,128.39,38.933972]
[1743504480945,0.063,128.41,128.39,46.722472]
[1743504483341,0.063,128.41,128.39,18.933972]
[1743504484163,0.063,128.41,128.4,7.02216157]
[1743504486754,0.063,128.41,128.4,231.32216157]
[1743504487859,0.063,128.41,128.4,224.3]
[1743504488049,0.063,128.41,128.4,231.18]
[1743504488648,0.063,128.41,128.4,231.32216157]
[1743504488845,0.063,128.41,128.4,257.902072]
[1743504490746,0.063,128.41,128.4,250.113972]
[1743504491058,0.063,128.41,128.4,25.813972]
[1743504491364,0.063,128.41,128.4,6.88]
[1743504491744,0.063,128.41,128.39,0.14216157]
[1743504491946,11.43062507,128.41,128.4,6.88]
[1743504492159,0.063,128.41,128.4,6.88]
[1743504492460,7.8505,128.41,128.4,6.88]
[1743504492662,19.21812507,128.41,128.4,6.88]
[1743504493857,0.063,128.41,128.4,6.88]
[1743504495268,11.43062507,128.41,128.4,6.88]
[1743504496573,19.21812507,128.41,128.4,6.88]
[1743504496747,0.063,128.41,128.4,231.16]
[1743504498354,0.063,128.41,128.4,231.30216157]
[1743504498554,0.063,128.41,128.4,231.16]
[1743504501073,11.43062507,128.41,128.4,231.16]
[1743504501657,0.063,128.41,128.4,231.16]
[1743504502172,0.063,128.41,128.4,250.093972]
[1743504503553,0.063,128.41,128.4,257.882072]
[1743504504977,0.063,128.41,128.4,33.602072]
[1743504505274,0.063,128.41,128.4,25.813972]
[1743504505471,0.063,128.41,128.4,6.88]
[1743504506061,0.063,128.41,128.38,0.03]
[1743504506062,31.43062507,128.41,128.38,0.03]
[1743504506392,20.0,128.4,128.39,6.88]
[1743504506559,31.36762507,128.4,128.39,6.88]
[1743504506756,39.15572507,128.4,128.39,231.16]
[1743504508980,39.15572507,128.4,128.39,224.28]
[1743504509184,39.15572507,128.4,128.39,231.16]
[1743504511178,50.66551171,128.4,128.39,224.32]
[1743504511501,70.13591171,128.4,128.34,0.03]
[1743504511660,11.36762507,128.35,128.34,0.03]
[1743504512506,11.36762507,128.35,128.34,6.91]
[1743504512663,11.36762507,128.35,128.34,0.03]
[1743504512997,27.36202507,128.35,128.34,6.91]
[1743504513700,46.83992507,128.35,128.28,0.03]
[1743504513866,11.36762507,128.31,128.28,0.03]
[1743504514985,7.7942,128.3,128.29,6.88]
[1743504515779,11.36762507,128.33,128.29,6.88]
[1743504515989,19.16002507,128.33,128.29,6.88]
[1743504516664,19.16002507,128.33,128.3,224.4]
[1743504518803,11.36762507,128.36,128.31,0.14216157]
[1743504519002,11.36762507,128.37,128.31,18.933972]
[1743504519367,19.15762507,128.37,128.33,0.14216157]
[1743504519596,19.15762507,128.37,128.34,6.88]
[1743504519800,11.36762507,128.39,128.34,6.88]
[1743504520484,19.15572507,128.4,128.35,18.933972]
[1743504520867,11.36762507,128.38,128.34,6.88]
[1743504521104,27.2585,128.4,128.34,6.88]
[1743504521398,11.36762507,128.39,128.34,6.88]
[1743504521971,7.7893,128.38,128.34,6.88]
[1743504522189,19.15692507,128.38,128.34,6.88]
[1743504522575,11.36762507,128.37,128.34,6.88]
[1743504523491,19.15792507,128.37,128.34,6.88]
[1743504524872,11.36762507,128.37,128.34,6.88]
[1743504525074,19.15762507,128.37,128.34,6.88]
[1743504526882,19.15762507,128.37,128.35,224.4]
[1743504528086,11.36762507,128.36,128.35,224.4]
[1743504528897,11.36762507,128.36,128.35,231.28]
[1743504529899,19.15812507,128.36,128.35,231.28]
[1743504531795,19.15692507,128.38,128.35,231.28]
[1743504532813,11.36762507,128.38,128.35,231.28]
[1743504533099,100.85662507,128.39,128.35,231.28]
[1743504533303,11.36762507,128.38,128.35,231.28]
[1743504534701,19.15712507,128.38,128.35,231.28]
[1743504534897,11.36762507,128.38,128.35,231.28]
[1743504535115,100.85662507,128.39,128.35,239.0711]
[1743504535602,100.85662507,128.39,128.35,231.28]
[1743504536995,19.15732507,128.38,128.35,231.28]
[1743504538192,11.36762507,128.37,128.35,231.28]
[1743504538700,11.36762507,128.37,128.35,224.4]
[1743504538877,27.2631,128.38,128.35,224.4]
[1743504538878,11.36762507,128.36,128.35,224.4]
[1743504539081,19.15812507,128.36,128.35,231.26]
[1743504541603,19.15812507,128.36,128.35,224.4]
[1743504541917,19.15812507,128.36,128.35,231.26]
[1743504543603,19.15812507,128.36,128.34,0.03]
[1743504543804,11.36762507,128.35,128.34,0.03]
[1743504544010,11.36762507,128.35,128.34,224.42]
[1743504544201,11.36762507,128.35,128.28,0.17216157]
[1743504544384,11.36762507,128.32,128.28,0.17216157]
[1743504544987,11.36762507,128.32,128.29,6.86]
[1743504545617,7.7936,128.31,128.29,6.86]
[1743504546707,7.7936,128.31,128.3,224.42]
[1743504551189,7.7936,128.31,128.3,231.26]
[1743504557918,15.07361461,128.31,128.3,231.26]
[1743504559224,15.07361461,128.31,128.3,224.42]
[1743504559403,15.07361461,128.31,128.3,231.26]
[1743504560810,15.07361461,128.31,128.3,231.29]
[1743504562006,15.07361461,128.31,128.3,224.45]
[1743504562198,15.07361461,128.31,128.3,231.29]
[1743504562804,15.07361461,128.31,128.3,224.45]
[1743504563004,15.07361461,128.31,128.28,0.03]
[1743504563005,34.55761461,128.31,128.28,0.03]
[1743504563211,7.28001461,128.29,128.28,0.03]
[1743504563624,15.07481461,128.29,128.28,0.03]
[1743504564519,15.07481461,128.29,128.28,6.87]
[1743504565829,7.7948,128.29,128.28,6.87]
[1743504566734,7.7948,128.29,128.28,231.37]
[1743504566943,15.07481461,128.29,128.28,231.37]
[1743504567313,7.7948,128.29,128.28,231.37]
[1743504570652,15.07481461,128.29,128.28,231.37]
[1743504574752,7.7948,128.29,128.28,231.37]
[1743504574950,7.28001461,128.31,128.28,231.37]
[1743504575171,7.793,128.32,128.28,231.37]
[1743504575361,15.07301461,128.32,128.28,231.37]
[1743504576573,15.07301461,128.32,128.29,0.14216157]
[1743504577254,15.07301461,128.32,128.28,231.37]
[1743504577453,7.28001461,128.31,128.28,231.37]
[1743504577672,7.28001461,128.29,128.28,231.37]
[1743504577875,7.28001461,128.31,128.28,231.37]
[1743504578038,15.07301461,128.32,128.28,231.37]
[1743504579168,7.793,128.32,128.28,231.37]
[1743504579369,15.07301461,128.32,128.28,231.37]
[1743504579548,81.7,128.33,128.29,0.14216157]
[1743504579549,96.77251461,128.33,128.29,0.14216157]
[1743504579862,89.4925,128.33,128.29,0.14216157]
[1743504580066,15.13511461,128.34,128.29,20.468872]
[1743504581545,7.28001461,128.33,128.29,20.468872]
[1743504581746,7.28001461,128.33,128.29,1.67706157]
[1743504581961,7.28001461,128.32,128.29,1.67706157]
[1743504582644,7.28001461,128.32,128.29,1.5349]
[1743504582846,7.7936,128.31,128.29,1.5349]
[1743504583247,7.7925,128.33,128.3,0.14216157]
[1743504584083,15.13501461,128.34,128.3,0.14216157]
[1743504584952,15.13501461,128.34,128.3,7.93636157]
[1743504585487,15.13501461,128.34,128.3,0.14216157]
[1743504586674,7.28001461,128.33,128.3,0.14216157]
[1743504586970,7.793,128.32,128.3,0.14216157]
[1743504587173,15.07301461,128.32,128.28,224.53]
[1743504587383,15.07301461,128.32,128.31,6.84]
[1743504588553,7.793,128.32,128.31,6.84]
[1743504589091,7.28001461,128.33,128.31,6.84]
[1743504589569,15.13481461,128.34,128.31,6.84]
[1743504590486,7.28001461,128.33,128.31,6.84]
[1743504590888,7.28001461,128.32,128.31,6.84]
[1743504591186,7.8548,128.34,128.31,6.84]
[1743504591496,15.13481461,128.34,128.32,224.48]
[1743504593706,7.8548,128.34,128.32,224.48]
[1743504596498,15.13481461,128.34,128.32,224.48]
[1743504596703,7.8548,128.34,128.32,224.48]
[1743504597507,0.063,128.34,128.33,0.14216157]
[1743504598105,0.063,128.34,128.33,18.933972]
[1743504598470,0.063,128.34,128.33,26.726372]
[1743504600617,0.063,128.34,128.33,0.14216157]
[1743504600801,0.063,128.34,128.33,6.98216157]
[1743504600994,0.063,128.34,128.33,6.84]
[1743504602426,7.8548,128.34,128.33,6.84]
[1743504602922,15.13481461,128.34,128.33,6.84]
[1743504604703,7.8548,128.34,128.33,6.84]
[1743504606325,0.063,128.34,128.33,6.84]
[1743504606808,0.063,128.34,128.33,231.26]
[1743504607198,0.06299999,128.34,128.33,250.193972]
[1743504607412,0.06299999,128.34,128.33,251.765872]
[1743504607999,0.06299999,128.34,128.33,224.42]
[1743504608202,0.06299999,128.34,128.33,231.26]
[1743504609003,11.42478558,128.34,128.33,231.26]
[1743504609907,0.06299999,128.34,128.33,231.26]
[1743504610818,7.85479999,128.34,128.33,231.26]
[1743504612506,19.21658558,128.34,128.33,231.26]
[1743504615035,0.06299999,128.34,128.33,231.26]
[1743504616732,11.42478558,128.34,128.33,231.26]
[1743504617099,19.21658558,128.34,128.33,231.26]
[1743504620932,19.21658558,128.34,128.33,231.29]
[1743504624234,50.05787117,128.34,128.33,224.46]
[1743504624538,50.05787117,128.34,128.33,231.3]
[1743504625941,50.05787117,128.34,128.33,224.46]
[1743504626619,50.05787117,128.34,128.3,0.03]
[1743504626825,20.0,128.32,128.31,224.46]
[1743504627129,31.36178559,128.32,128.31,231.3]
[1743504628029,39.15478559,128.32,128.3,0.03]
[1743504628341,11.36178559,128.31,128.3,0.03]
[1743504629433,11.36178559,128.31,128.3,6.87]
[1743504629818,7.28231801,128.31,128.3,6.87]
[1743504630538,15.07591801,128.31,128.3,6.87]
[1743504633543,96.77591801,128.31,128.3,6.87]
[1743504636847,96.77591801,128.31,128.3,231.37]
[1743504644635,89.4936,128.31,128.3,231.37]
[1743504645154,7.7933,128.32,128.3,231.37]
[1743504646258,15.07561801,128.32,128.3,231.37]
[1743504650288,7.28231801,128.31,128.3,231.37]
[1743504651679,15.07591801,128.31,128.3,231.37]
[1743504657166,15.07591801,128.31,128.3,224.53]
[1743504657464,15.07591801,128.31,128.3,231.37]
[1743504657655,20.0,128.29,128.28,0.03]
[1743504657856,27.28231801,128.29,128.28,224.53]
[1743504658367,35.07711801,128.29,128.28,224.53]
[1743504658745,15.07711801,128.29,128.28,224.53]
[1743504658960,7.7948,128.29,128.28,231.37]
[1743504659975,7.7945,128.3,128.28,231.37]
[1743504662274,15.07681801,128.3,128.28,231.37]
[1743504664060,7.7945,128.3,128.28,231.37]
[1743504664263,7.793,128.32,128.28,231.37]
[1743504664872,7.793,128.32,128.29,0.14216157]
[1743504665879,7.7924,128.33,128.29,0.14216157]
[1743504666073,15.07471801,128.33,128.29,0.14216157]
[1743504666756,7.28231801,128.32,128.28,231.37]
[1743504667959,7.7936,128.31,128.29,6.84]
[1743504668470,15.07591801,128.31,128.29,6.84]
[1743504672867,7.7936,128.31,128.29,6.84]
[1743504674879,7.7936,128.31,128.3,224.5]
[1743504680000,15.07591801,128.31,128.3,224.53]
[1743504680315,15.13891801,128.31,128.3,224.53]
[1743504680987,15.13891801,128.31,128.3,231.37]
[1743504682192,7.8566,128.31,128.3,231.37]
[1743504684202,0.063,128.31,128.3,231.37]
[1743504684997,7.34531801,128.31,128.3,231.37]
[1743504685201,20.0,128.29,128.28,0.03]
[1743504685377,27.28231801,128.29,128.28,231.37]
[1743504685990,27.28231801,128.29,128.28,224.5]
[1743504686479,35.07711801,128.29,128.28,224.5]
[1743504686883,54.56411801,128.29,128.28,224.5]
[1743504687211,54.56411801,128.29,128.28,231.34]
[1743504688882,54.56411801,128.29,128.26,0.03]
[1743504689111,7.28231801,128.27,128.26,0.03]
[1743504690206,7.28231801,128.27,128.26,6.87]
[1743504690585,128.9818,128.29,128.26,6.87]
[1743504690789,15.07831801,128.27,128.26,6.87]
[1743504691717,7.7958,128.28,128.26,6.87]
[1743504692420,7.28231801,128.27,128.26,6.87]
[1743504692785,15.07831801,128.27,128.26,6.87]
[1743504693509,15.07831801,128.27,128.26,0.03]
[1743504693714,15.07831801,128.27,128.26,6.87]
[1743504696015,7.796,128.27,128.26,6.87]
[1743504696691,7.796,128.27,128.26,231.43]
[1743504696891,7.7956,128.28,128.26,231.43]
[1743504697096,7.7945,128.3,128.26,239.2265]
[1743504697410,7.7945,128.3,128.26,231.43]
[1743504697600,7.7945,128.3,128.26,239.2266]
[1743504697921,7.7945,128.3,128.26,231.43]
[1743504698594,15.07681801,128.3,128.26,231.43]
[1743504700111,7.28231801,128.29,128.26,231.43]
[1743504700886,7.28231801,128.28,128.26,231.43]
[1743504701295,7.796,128.27,128.26,231.43]
[1743504703116,15.07831801,128.27,128.26,231.43]
[1743504708419,15.07831801,128.27,128.26,231.38]
[1743504708826,15.07831801,128.27,128.26,224.56]
[1743504709422,15.07831801,128.27,128.25,0.03]
[1743504709606,7.28231801,128.26,128.25,0.03]
[1743504709795,15.07891801,128.26,128.25,0.03]
[1743504710117,15.07891801,128.26,128.25,0.0001]
[1743504710293,15.07891801,128.26,128.24,0.03]
[1743504710494,7.28231801,128.25,128.24,0.0001]
[1743504710794,25.93196687,128.25,128.24,0.0001]
[1743504711619,20.0,128.23,128.22,0.03]
[1743504711828,35.08071801,128.23,128.22,0.03]
[1743504712911,35.08071801,128.23,128.22,6.87]
[1743504715421,27.7984,128.23,128.22,6.87]
[1743504715623,35.08071801,128.23,128.22,6.87]
[1743504716720,35.08071801,128.23,128.22,231.47]
[1743504718898,7.7966,128.26,128.22,231.47]
[1743504719100,15.07891801,128.26,128.22,231.47]
[1743504719726,7.28231801,128.26,128.22,239.269]
[1743504719926,7.28231801,128.26,128.23,0.14216157]
[1743504720131,7.28231801,128.27,128.23,1.66596157]
[1743504720319,7.34531801,128.28,128.23,1.66596157]
[1743504720714,15.14081801,128.28,128.23,1.66596157]
[1743504721019,15.14081801,128.28,128.23,9.46426157]
[1743504721622,15.14081801,128.28,128.23,1.66596157]
[1743504724037,7.28231801,128.24,128.22,224.63]
[1743504724335,81.7,128.27,128.23,6.84]
[1743504724512,7.28231801,128.26,128.23,6.84]
[1743504725720,7.7972,128.25,128.23,6.84]
[1743504726235,15.07951801,128.25,128.23,6.84]
[1743504727319,7.7968,128.26,128.23,6.84]
[1743504728126,7.7963,128.27,128.23,6.84]
[1743504729040,0.063,128.28,128.25,6.2743]
[1743504729214,0.063,128.28,128.26,0.14216157]
[1743504729416,0.063,128.28,128.27,6.84]
[1743504729831,7.34531801,128.28,128.27,6.84]
[1743504730839,7.8578,128.29,128.27,6.84]
[1743504731037,7.28231801,128.28,128.27,6.84]
[1743504731242,15.07771801,128.28,128.27,6.84]
[1743504731732,34.56631801,128.28,128.27,6.84]
[1743504733639,34.56631801,128.28,128.27,231.4]
[1743504733941,15.07771801,128.28,128.27,231.4]
[1743504736344,0.063,128.29,128.27,231.4]
[1743504736345,15.14041801,128.29,128.27,231.4]
[1743504736915,7.8581,128.29,128.27,231.4]
[1743504737553,0.063,128.29,128.27,231.4]
[1743504739047,0.063,128.29,128.27,6.84]
[1743504739048,7.34531801,128.29,128.27,6.84]
[1743504739749,7.8578,128.29,128.27,6.84]
[1743504739939,0.063,128.29,128.27,6.84]
[1743504740849,7.8579,128.29,128.27,6.84]
[1743504741043,0.063,128.29,128.27,6.84]
[1743504742345,0.063,128.29,128.27,14.6358]
[1743504743046,0.063,128.29,128.27,6.84]
[1743504744952,0.063,128.29,128.27,14.6359]